[Event "Late-Titled-Tuesday-Blitz-February-06-2024"]
[Site "Chess.com"]
[Date "2024.02.06"]
[Round "11"]
[White "MolecularChemist"]
[Black "dretch"]
[Result "1/2-1/2"]
[WhiteElo "2968"]
[BlackElo "2860"]
[TimeControl "180+1"]
[EndTime "16:05:11 PST"]
[Termination "Game drawn by repetition"]

1. d4 {[%clk 0:03:00.9]} 1... d5 {[%clk 0:02:59.4]} 2. Nf3 {[%clk 0:02:59.9]}
2... Nf6 {[%clk 0:02:59.4]} 3. c4 {[%clk 0:03:00.1]} 3... c6 {[%clk 0:02:59.6]}
4. e3 {[%clk 0:02:59.1]} 4... Bf5 {[%clk 0:02:58.9]} 5. Nc3 {[%clk 0:02:59.3]}
5... e6 {[%clk 0:02:59.2]} 6. Nh4 {[%clk 0:02:59.2]} 6... Bg6 {[%clk 0:02:59.5]}
7. Nxg6 {[%clk 0:02:58.7]} 7... hxg6 {[%clk 0:03:00.4]} 8. h3 {[%clk 0:02:59.1]}
8... Nbd7 {[%clk 0:03:00.2]} 9. Bd3 {[%clk 0:02:55.9]} 9... Nb6 {[%clk
0:02:57.2]} 10. b3 {[%clk 0:02:52.6]} 10... Bb4 {[%clk 0:02:45.4]} 11. Bd2
{[%clk 0:02:51.1]} 11... dxc4 {[%clk 0:02:42.8]} 12. bxc4 {[%clk 0:02:50.4]}
12... e5 {[%clk 0:02:43.3]} 13. Qb3 {[%clk 0:02:45.2]} 13... exd4 {[%clk
0:01:34.9]} 14. Qxb4 {[%clk 0:02:38.8]} 14... dxc3 {[%clk 0:01:34.7]} 15. Qxc3
{[%clk 0:02:39.7]} 15... O-O {[%clk 0:01:33]} 16. Qc2 {[%clk 0:02:37.8]} 16...
Qe7 {[%clk 0:01:26.9]} 17. O-O {[%clk 0:02:36.8]} 17... Rfd8 {[%clk 0:01:26.3]}
18. Rfd1 {[%clk 0:02:35.6]} 18... Nbd7 {[%clk 0:01:18.5]} 19. Rab1 {[%clk
0:02:27.6]} 19... Nc5 {[%clk 0:01:13.6]} 20. Bb4 {[%clk 0:02:27.6]} 20... b6
{[%clk 0:01:11.1]} 21. Be2 {[%clk 0:02:28.2]} 21... Qe4 {[%clk 0:01:04.4]} 22.
Qxe4 {[%clk 0:02:17.2]} 22... Nfxe4 {[%clk 0:01:05.3]} 23. Rd4 {[%clk
0:02:06.4]} 23... f5 {[%clk 0:00:30.7]} 24. Rbd1 {[%clk 0:02:01.6]} 24... Re8
{[%clk 0:00:28.5]} 25. g4 {[%clk 0:01:43.7]} 25... Na4 {[%clk 0:00:27.3]} 26.
Rd7 {[%clk 0:01:01.6]} 26... a5 {[%clk 0:00:23.6]} 27. Be1 {[%clk 0:01:00.5]}
27... Nac3 {[%clk 0:00:23.3]} 28. Bxc3 {[%clk 0:01:00.4]} 28... Nxc3 {[%clk
0:00:23.3]} 29. R1d2 {[%clk 0:01:01.1]} 29... f4 {[%clk 0:00:17.6]} 30. Bf3
{[%clk 0:00:23.8]} 30... fxe3 {[%clk 0:00:17.1]} 31. fxe3 {[%clk 0:00:24.7]}
31... Rxe3 {[%clk 0:00:16.5]} 32. Bxc6 {[%clk 0:00:24.8]} 32... Rf8 {[%clk
0:00:16.2]} 33. Kg2 {[%clk 0:00:23.7]} 33... Ne2 {[%clk 0:00:14]} 34. Rd8 {[%clk
0:00:17.4]} 34... Nf4+ {[%clk 0:00:12.4]} 35. Kg1 {[%clk 0:00:12.7]} 35... Nxh3+
{[%clk 0:00:12]} 36. Kh2 {[%clk 0:00:12.6]} 36... Nf4 {[%clk 0:00:12.3]} 37.
Bd5+ {[%clk 0:00:09.7]} 37... Nxd5 {[%clk 0:00:12.2]} 38. R2xd5 {[%clk
0:00:10.4]} 38... Re2+ {[%clk 0:00:12]} 39. Kg3 {[%clk 0:00:10.7]} 39... Rxa2
{[%clk 0:00:12.3]} 40. Rxf8+ {[%clk 0:00:10.8]} 40... Kxf8 {[%clk 0:00:12.4]}
41. Rb5 {[%clk 0:00:11.2]} 41... Rc2 {[%clk 0:00:11.1]} 42. Rxb6 {[%clk
0:00:11.7]} 42... Rxc4 {[%clk 0:00:11.5]} 43. Ra6 {[%clk 0:00:09.6]} 43... a4
{[%clk 0:00:11]} 44. Ra7 {[%clk 0:00:07.5]} 44... Rc3+ {[%clk 0:00:10.7]} 45.
Kh4 {[%clk 0:00:07]} 45... a3 {[%clk 0:00:09.2]} 46. Kg5 {[%clk 0:00:07.5]}
46... Kg8 {[%clk 0:00:08.9]} 47. Kxg6 {[%clk 0:00:07.1]} 47... Rc6+ {[%clk
0:00:09.4]} 48. Kg5 {[%clk 0:00:07.6]} 48... Rc3 {[%clk 0:00:09.5]} 49. Kg6
{[%clk 0:00:08.1]} 49... Rc6+ {[%clk 0:00:09.8]} 50. Kg5 {[%clk 0:00:08.7]}
50... Rc5+ {[%clk 0:00:09.8]} 51. Kg6 {[%clk 0:00:08.3]} 51... Rc6+ {[%clk
0:00:10.3]} 1/2-1/2

[Event "Late-Titled-Tuesday-Blitz-February-06-2024"]
[Site "Chess.com"]
[Date "2024.02.06"]
[Round "11"]
[White "pinguino120"]
[Black "Eloist"]
[Result "0-1"]
[WhiteElo "2282"]
[BlackElo "2446"]
[TimeControl "180+1"]
[EndTime "16:05:13 PST"]
[Termination "Eloist won by checkmate"]

1. d4 {[%clk 0:03:00.9]} 1... e6 {[%clk 0:02:59.8]} 2. e4 {[%clk 0:02:58.8]}
2... d5 {[%clk 0:02:59.2]} 3. Nc3 {[%clk 0:02:58.9]} 3... Nf6 {[%clk 0:02:59.1]}
4. e5 {[%clk 0:02:57.8]} 4... Nfd7 {[%clk 0:02:59.3]} 5. f4 {[%clk 0:02:57.9]}
5... c5 {[%clk 0:02:59.6]} 6. Nf3 {[%clk 0:02:57.9]} 6... Nc6 {[%clk 0:02:59.9]}
7. Be3 {[%clk 0:02:58.5]} 7... a6 {[%clk 0:03:00]} 8. Qd2 {[%clk 0:02:57.2]}
8... b5 {[%clk 0:03:00.1]} 9. a3 {[%clk 0:02:48.4]} 9... Qa5 {[%clk 0:02:58]}
10. dxc5 {[%clk 0:02:25.4]} 10... Bxc5 {[%clk 0:02:56.1]} 11. Bxc5 {[%clk
0:02:14.4]} 11... Nxc5 {[%clk 0:02:55.7]} 12. Be2 {[%clk 0:02:13.3]} 12... Qb6
{[%clk 0:02:44.3]} 13. Rd1 {[%clk 0:01:56.2]} 13... O-O {[%clk 0:02:24.7]} 14.
Nd4 {[%clk 0:01:55.2]} 14... Bd7 {[%clk 0:02:16.8]} 15. O-O {[%clk 0:01:51.5]}
15... Rfc8 {[%clk 0:02:06.7]} 16. Kh1 {[%clk 0:01:50.3]} 16... b4 {[%clk
0:02:00.5]} 17. Nxc6 {[%clk 0:01:23.6]} 17... bxc3 {[%clk 0:01:53.2]} 18. Ne7+
{[%clk 0:01:23.6]} 18... Kf8 {[%clk 0:01:52.7]} 19. Nxc8 {[%clk 0:01:23.8]}
19... Qxb2 {[%clk 0:01:17.3]} 20. Qc1 {[%clk 0:01:07.7]} 20... Rxc8 {[%clk
0:01:12.7]} 21. Rd4 {[%clk 0:01:01.3]} 21... Ne4 {[%clk 0:01:07.4]} 22. Rb4
{[%clk 0:00:57.9]} 22... Qxc1 {[%clk 0:00:49.9]} 23. Rxc1 {[%clk 0:00:57.3]}
23... f6 {[%clk 0:00:42.3]} 24. Bd3 {[%clk 0:00:52.7]} 24... Nf2+ {[%clk
0:00:37.5]} 25. Kg1 {[%clk 0:00:52.3]} 25... Nxd3 {[%clk 0:00:37]} 26. cxd3
{[%clk 0:00:53.2]} 26... Bb5 {[%clk 0:00:32.1]} 27. d4 {[%clk 0:00:43.3]} 27...
Be2 {[%clk 0:00:18.9]} 28. Kf2 {[%clk 0:00:40.9]} 28... Bg4 {[%clk 0:00:18.5]}
29. Ke3 {[%clk 0:00:21.6]} 29... Bf5 {[%clk 0:00:18.1]} 30. h3 {[%clk 0:00:21]}
30... h5 {[%clk 0:00:17.7]} 31. Rb3 {[%clk 0:00:18.9]} 31... c2 {[%clk
0:00:17.4]} 32. Rb2 {[%clk 0:00:19.3]} 32... h4 {[%clk 0:00:17.3]} 33. Kd2
{[%clk 0:00:19.3]} 33... Rc4 {[%clk 0:00:16.8]} 34. Ke3 {[%clk 0:00:10.7]} 34...
Rc3+ {[%clk 0:00:16.8]} 35. Ke2 {[%clk 0:00:09.5]} 35... Rxa3 {[%clk 0:00:14.7]}
36. Rb6 {[%clk 0:00:09]} 36... a5 {[%clk 0:00:14]} 37. Rc6 {[%clk 0:00:08.8]}
37... Rg3 {[%clk 0:00:12.8]} 38. Kf2 {[%clk 0:00:08.2]} 38... a4 {[%clk
0:00:12.8]} 39. Ra1 {[%clk 0:00:04.6]} 39... a3 {[%clk 0:00:12.4]} 40. Ra6
{[%clk 0:00:04.2]} 40... Be4 {[%clk 0:00:11.3]} 41. Ke2 {[%clk 0:00:04.2]} 41...
Rxg2+ {[%clk 0:00:11.4]} 42. Ke3 {[%clk 0:00:04.3]} 42... Rg3+ {[%clk
0:00:11.5]} 43. Kd2 {[%clk 0:00:04.7]} 43... Rxh3 {[%clk 0:00:09.5]} 44. R1xa3
{[%clk 0:00:04.4]} 44... Rh2+ {[%clk 0:00:09.5]} 45. Kc1 {[%clk 0:00:04.4]}
45... Rh1+ {[%clk 0:00:09.7]} 46. Kb2 {[%clk 0:00:05]} 46... c1=Q+ {[%clk
0:00:09.9]} 47. Ka2 {[%clk 0:00:05.1]} 47... Qb1# {[%clk 0:00:09.1]} 0-1

[Event "Late-Titled-Tuesday-Blitz-February-06-2024"]
[Site "Chess.com"]
[Date "2024.02.06"]
[Round "11"]
[White "jinxy2009"]
[Black "Akhayan"]
[Result "0-1"]
[WhiteElo "2238"]
[BlackElo "2386"]
[TimeControl "180+1"]
[EndTime "16:05:15 PST"]
[Termination "Akhayan won by resignation"]

1. e4 {[%clk 0:03:00.9]} 1... c5 {[%clk 0:02:59.1]} 2. Nf3 {[%clk 0:02:59]} 2...
e6 {[%clk 0:02:59.2]} 3. d4 {[%clk 0:02:58.3]} 3... cxd4 {[%clk 0:02:59.8]} 4.
Nxd4 {[%clk 0:02:59.1]} 4... Nf6 {[%clk 0:02:59.7]} 5. Nc3 {[%clk 0:02:56.5]}
5... d6 {[%clk 0:03:00.2]} 6. g4 {[%clk 0:02:41.2]} 6... Nc6 {[%clk 0:02:56.8]}
7. g5 {[%clk 0:02:27.4]} 7... Nd7 {[%clk 0:02:57.3]} 8. Be3 {[%clk 0:02:24.8]}
8... Be7 {[%clk 0:02:57.4]} 9. h4 {[%clk 0:02:22.5]} 9... O-O {[%clk 0:02:57.9]}
10. Qd2 {[%clk 0:02:19.7]} 10... a6 {[%clk 0:02:57.8]} 11. O-O-O {[%clk
0:02:18.8]} 11... Qc7 {[%clk 0:02:55.9]} 12. h5 {[%clk 0:02:13.6]} 12... b5
{[%clk 0:02:56.2]} 13. g6 {[%clk 0:02:03.2]} 13... b4 {[%clk 0:02:51.2]} 14. Nb1
{[%clk 0:01:57]} 14... Nxd4 {[%clk 0:02:46.9]} 15. Bxd4 {[%clk 0:01:50.5]} 15...
e5 {[%clk 0:02:47.4]} 16. Be3 {[%clk 0:01:49.4]} 16... Nf6 {[%clk 0:02:43.3]}
17. h6 {[%clk 0:01:34.7]} 17... fxg6 {[%clk 0:02:41.2]} 18. hxg7 {[%clk
0:01:34.2]} 18... Kxg7 {[%clk 0:02:41.8]} 19. Bh6+ {[%clk 0:01:31.3]} 19... Kg8
{[%clk 0:02:42.3]} 20. Bxf8 {[%clk 0:01:31.1]} 20... Bxf8 {[%clk 0:02:42.9]} 21.
Qxb4 {[%clk 0:01:28.6]} 21... Be6 {[%clk 0:02:35.6]} 22. Qd2 {[%clk 0:01:22.4]}
22... Nxe4 {[%clk 0:02:31.4]} 23. Qd3 {[%clk 0:01:17.3]} 23... d5 {[%clk
0:02:15.1]} 24. Nc3 {[%clk 0:01:06.5]} 24... Nxf2 {[%clk 0:02:11]} 25. Qf3
{[%clk 0:00:54.4]} 25... Nxh1 {[%clk 0:02:07.8]} 26. Nxd5 {[%clk 0:00:53.1]}
26... Qf7 {[%clk 0:01:56.8]} 27. Nf6+ {[%clk 0:00:50.2]} 27... Kg7 {[%clk
0:01:56.8]} 28. Qxa8 {[%clk 0:00:48.2]} 28... Qxf6 {[%clk 0:01:51.6]} 29. Qxh1
{[%clk 0:00:48]} 29... Bc5 {[%clk 0:01:44.6]} 30. Bxa6 {[%clk 0:00:43.6]} 30...
Bd4 {[%clk 0:01:43.9]} 31. c3 {[%clk 0:00:42.9]} 31... Be3+ {[%clk 0:01:23.4]}
32. Kc2 {[%clk 0:00:40.4]} 32... Bf5+ {[%clk 0:00:54.2]} 33. Bd3 {[%clk
0:00:39]} 33... Be6 {[%clk 0:00:51.6]} 34. Qb7+ {[%clk 0:00:33.1]} 34... Kg8
{[%clk 0:00:37.1]} 35. Rh1 {[%clk 0:00:29.9]} 35... h6 {[%clk 0:00:27]} 36. Rf1
{[%clk 0:00:25.1]} 36... Bf4 {[%clk 0:00:25.9]} 37. Qg2 {[%clk 0:00:20.6]} 37...
g5 {[%clk 0:00:23.6]} 38. Qe4 {[%clk 0:00:19.4]} 38... Qe7 {[%clk 0:00:20.3]}
39. Qg6+ {[%clk 0:00:18]} 39... Kf8 {[%clk 0:00:20.4]} 40. Qxh6+ {[%clk
0:00:16.8]} 40... Ke8 {[%clk 0:00:20.9]} 41. Bb5+ {[%clk 0:00:15.9]} 41... Kd8
{[%clk 0:00:20.4]} 42. Rd1+ {[%clk 0:00:15.8]} 42... Kc7 {[%clk 0:00:20.6]} 43.
a4 {[%clk 0:00:13]} 43... g4 {[%clk 0:00:18.6]} 44. Kb1 {[%clk 0:00:11.5]} 44...
Bxh6 {[%clk 0:00:18]} 45. a5 {[%clk 0:00:08.1]} 45... Bf5+ {[%clk 0:00:18.3]}
46. Ka1 {[%clk 0:00:07.4]} 46... Qc5 {[%clk 0:00:18.9]} 47. c4 {[%clk
0:00:07.3]} 47... Qb4 {[%clk 0:00:18.6]} 48. a6 {[%clk 0:00:05.9]} 48... Qa5+
{[%clk 0:00:18.4]} 0-1

[Event "Late-Titled-Tuesday-Blitz-February-06-2024"]
[Site "Chess.com"]
[Date "2024.02.06"]
[Round "11"]
[White "ChristopherYoo"]
[Black "bilelou"]
[Result "0-1"]
[WhiteElo "2972"]
[BlackElo "2762"]
[TimeControl "180+1"]
[EndTime "16:05:17 PST"]
[Termination "bilelou won on time"]

1. e4 {[%clk 0:03:00.9]} 1... c5 {[%clk 0:02:59.3]} 2. Nf3 {[%clk 0:03:01]} 2...
Nc6 {[%clk 0:02:59.8]} 3. Bb5 {[%clk 0:03:00.6]} 3... Nf6 {[%clk 0:02:59.4]} 4.
Nc3 {[%clk 0:02:59.4]} 4... Nd4 {[%clk 0:03:00.1]} 5. e5 {[%clk 0:02:59]} 5...
Nxb5 {[%clk 0:03:00.8]} 6. Nxb5 {[%clk 0:02:59.8]} 6... Nd5 {[%clk 0:03:01.4]}
7. Ng5 {[%clk 0:03:00.2]} 7... f6 {[%clk 0:02:59.9]} 8. Ne4 {[%clk 0:02:48.8]}
8... f5 {[%clk 0:02:51.9]} 9. Ng3 {[%clk 0:02:34.5]} 9... e6 {[%clk 0:02:41.6]}
10. c4 {[%clk 0:02:34.4]} 10... Nb4 {[%clk 0:02:38]} 11. d4 {[%clk 0:02:33]}
11... a6 {[%clk 0:02:35.4]} 12. Nd6+ {[%clk 0:02:26.5]} 12... Bxd6 {[%clk
0:02:32.5]} 13. exd6 {[%clk 0:02:27.4]} 13... cxd4 {[%clk 0:02:33]} 14. O-O
{[%clk 0:02:21.3]} 14... O-O {[%clk 0:02:32.2]} 15. Qxd4 {[%clk 0:01:56.4]}
15... Nc2 {[%clk 0:02:19.7]} 16. Qc3 {[%clk 0:01:55.4]} 16... Nxa1 {[%clk
0:02:18.9]} 17. Bf4 {[%clk 0:01:47.9]} 17... b5 {[%clk 0:02:18.3]} 18. Rxa1
{[%clk 0:01:44.3]} 18... Bb7 {[%clk 0:02:18.4]} 19. Nh5 {[%clk 0:01:34]} 19...
Rf7 {[%clk 0:02:10.2]} 20. Qg3 {[%clk 0:01:33.3]} 20... Rc8 {[%clk 0:02:04]} 21.
cxb5 {[%clk 0:01:32]} 21... axb5 {[%clk 0:01:58.8]} 22. h4 {[%clk 0:01:32.1]}
22... Rc4 {[%clk 0:01:51.9]} 23. b3 {[%clk 0:01:29]} 23... Re4 {[%clk 0:01:45]}
24. Rc1 {[%clk 0:01:15.1]} 24... Bc6 {[%clk 0:01:42.3]} 25. f3 {[%clk
0:01:12.3]} 25... Re2 {[%clk 0:01:31.9]} 26. Kh2 {[%clk 0:01:02.8]} 26... Qa8
{[%clk 0:01:23.4]} 27. Rc3 {[%clk 0:00:57.1]} 27... b4 {[%clk 0:01:22.3]} 28.
Re3 {[%clk 0:00:49.7]} 28... Rxa2 {[%clk 0:00:59.5]} 29. Be5 {[%clk 0:00:41.6]}
29... Qf8 {[%clk 0:00:58.7]} 30. Nf4 {[%clk 0:00:40]} 30... Ra5 {[%clk
0:00:52.5]} 31. Nd3 {[%clk 0:00:36.1]} 31... Rd5 {[%clk 0:00:37.6]} 32. Nxb4
{[%clk 0:00:34.3]} 32... f4 {[%clk 0:00:37.4]} 33. Bxf4 {[%clk 0:00:20.7]} 33...
Rxf4 {[%clk 0:00:38.3]} 34. Nxd5 {[%clk 0:00:18.4]} 34... Bxd5 {[%clk
0:00:39.2]} 35. h5 {[%clk 0:00:18.4]} 35... Qf6 {[%clk 0:00:26]} 36. Kg1 {[%clk
0:00:13.7]} 36... Qh4 {[%clk 0:00:25.8]} 37. Qxh4 {[%clk 0:00:09.8]} 37... Rxh4
{[%clk 0:00:26.7]} 38. Rc3 {[%clk 0:00:10.2]} 38... Rxh5 {[%clk 0:00:26.7]} 39.
b4 {[%clk 0:00:04.3]} 39... Bc6 {[%clk 0:00:26.8]} 40. Ra3 {[%clk 0:00:02.5]}
40... Rd5 {[%clk 0:00:26.2]} 41. Ra6 {[%clk 0:00:02]} 41... Rxd6 {[%clk
0:00:25.8]} 42. Kf2 {[%clk 0:00:02.2]} 42... Rd2+ {[%clk 0:00:25.7]} 43. Ke3
{[%clk 0:00:02.1]} 43... Re2+ {[%clk 0:00:25.9]} 44. Kd4 {[%clk 0:00:01.7]}
44... Rxg2 {[%clk 0:00:26.5]} 45. Kc5 {[%clk 0:00:01.3]} 45... Bxf3 {[%clk
0:00:26.8]} 46. Kd6 {[%clk 0:00:01.5]} 46... Rd2+ {[%clk 0:00:26]} 47. Ke7
{[%clk 0:00:01.7]} 47... h5 {[%clk 0:00:26.6]} 48. b5 {[%clk 0:00:02]} 48... h4
{[%clk 0:00:25.5]} 49. Ra3 {[%clk 0:00:02.2]} 49... Bg2 {[%clk 0:00:23.6]} 50.
b6 {[%clk 0:00:01.8]} 50... h3 {[%clk 0:00:23.5]} 51. Ra4 {[%clk 0:00:01.8]}
51... h2 {[%clk 0:00:22.6]} 52. Rh4 {[%clk 0:00:02.3]} 52... h1=Q {[%clk
0:00:23]} 53. Rxh1 {[%clk 0:00:01.8]} 53... Bxh1 {[%clk 0:00:23.2]} 54. b7
{[%clk 0:00:02.5]} 54... Bxb7 {[%clk 0:00:21.9]} 0-1

[Event "Late-Titled-Tuesday-Blitz-February-06-2024"]
[Site "Chess.com"]
[Date "2024.02.06"]
[Round "11"]
[White "masnyszachistaaa"]
[Black "Rutricks"]
[Result "1-0"]
[WhiteElo "2562"]
[BlackElo "2708"]
[TimeControl "180+1"]
[EndTime "16:05:29 PST"]
[Termination "masnyszachistaaa won by checkmate"]

1. Nf3 {[%clk 0:02:55]} 1... g6 {[%clk 0:03:00.3]} 2. d4 {[%clk 0:02:51]} 2...
Bg7 {[%clk 0:03:01.2]} 3. c4 {[%clk 0:02:48.7]} 3... d6 {[%clk 0:03:01.5]} 4.
Nc3 {[%clk 0:02:47.8]} 4... Nd7 {[%clk 0:03:01.3]} 5. e4 {[%clk 0:02:46.4]} 5...
e5 {[%clk 0:03:01.8]} 6. Be2 {[%clk 0:02:44.4]} 6... Ngf6 {[%clk 0:03:00]} 7.
O-O {[%clk 0:02:44]} 7... O-O {[%clk 0:03:00.4]} 8. Re1 {[%clk 0:02:44.1]} 8...
Re8 {[%clk 0:03:00.8]} 9. Bf1 {[%clk 0:02:44.2]} 9... exd4 {[%clk 0:02:59.4]}
10. Nxd4 {[%clk 0:02:45.1]} 10... Ng4 {[%clk 0:02:59.8]} 11. h3 {[%clk
0:02:16.3]} 11... Nge5 {[%clk 0:02:43.9]} 12. Be3 {[%clk 0:02:14.4]} 12... Nc5
{[%clk 0:02:43.9]} 13. Rc1 {[%clk 0:02:11.6]} 13... Bd7 {[%clk 0:02:42]} 14. Qd2
{[%clk 0:01:48.8]} 14... a6 {[%clk 0:02:39.5]} 15. f4 {[%clk 0:01:31.1]} 15...
Nc6 {[%clk 0:02:39.5]} 16. Nxc6 {[%clk 0:01:30.5]} 16... Bxc6 {[%clk 0:02:40.4]}
17. e5 {[%clk 0:01:20.1]} 17... Qh4 {[%clk 0:02:00.1]} 18. Bf2 {[%clk
0:01:15.4]} 18... Qh5 {[%clk 0:01:55.7]} 19. Be2 {[%clk 0:01:12.6]} 19... Qf5
{[%clk 0:01:55.3]} 20. Bxc5 {[%clk 0:01:05]} 20... dxe5 {[%clk 0:01:36.7]} 21.
Bg4 {[%clk 0:00:57.2]} 21... Qf6 {[%clk 0:01:37.1]} 22. fxe5 {[%clk 0:00:51.1]}
22... Rxe5 {[%clk 0:01:37.2]} 23. Rxe5 {[%clk 0:00:50.6]} 23... Qxe5 {[%clk
0:01:38.1]} 24. Bf2 {[%clk 0:00:47.1]} 24... h5 {[%clk 0:01:37.7]} 25. Be2
{[%clk 0:00:44.6]} 25... Kh7 {[%clk 0:01:38]} 26. Re1 {[%clk 0:00:43.2]} 26...
Qa5 {[%clk 0:01:33.8]} 27. Bd3 {[%clk 0:00:37.9]} 27... Bh6 {[%clk 0:01:26.8]}
28. Qe2 {[%clk 0:00:36.1]} 28... Re8 {[%clk 0:01:25.3]} 29. Qd1 {[%clk
0:00:31.9]} 29... Qg5 {[%clk 0:01:19.9]} 30. Nd5 {[%clk 0:00:22.4]} 30... Rxe1+
{[%clk 0:01:06.4]} 31. Bxe1 {[%clk 0:00:23.3]} 31... Bxd5 {[%clk 0:01:07]} 32.
cxd5 {[%clk 0:00:23.7]} 32... Qe5 {[%clk 0:01:03.8]} 33. Bf2 {[%clk 0:00:16.3]}
33... Qxb2 {[%clk 0:00:57.9]} 34. Qf3 {[%clk 0:00:15.5]} 34... Kg8 {[%clk
0:00:50.4]} 35. Qe4 {[%clk 0:00:14.7]} 35... Qc1+ {[%clk 0:00:43.5]} 36. Kh2
{[%clk 0:00:14.5]} 36... Bf4+ {[%clk 0:00:43.6]} 37. g3 {[%clk 0:00:14.8]} 37...
Qb2 {[%clk 0:00:37]} 38. Qxf4 {[%clk 0:00:13.5]} 38... Qxa2 {[%clk 0:00:35.2]}
39. Kg2 {[%clk 0:00:12.2]} 39... Qxd5+ {[%clk 0:00:35.2]} 40. Qe4 {[%clk
0:00:12.8]} 40... Qd6 {[%clk 0:00:32.7]} 41. Qe8+ {[%clk 0:00:12.2]} 41... Kg7
{[%clk 0:00:33.1]} 42. Qe3 {[%clk 0:00:11.5]} 42... c5 {[%clk 0:00:32.2]} 43. g4
{[%clk 0:00:08.6]} 43... hxg4 {[%clk 0:00:30.8]} 44. hxg4 {[%clk 0:00:09.5]}
44... b5 {[%clk 0:00:31]} 45. Bg3 {[%clk 0:00:09.9]} 45... Qd5+ {[%clk
0:00:30.2]} 46. Qe4 {[%clk 0:00:09.6]} 46... Qa2+ {[%clk 0:00:30.9]} 47. Kh3
{[%clk 0:00:07.3]} 47... c4 {[%clk 0:00:28.1]} 48. Qe5+ {[%clk 0:00:07.5]} 48...
Kh7 {[%clk 0:00:24.7]} 49. Be4 {[%clk 0:00:04]} 49... Qd2 {[%clk 0:00:17.4]} 50.
Qf6 {[%clk 0:00:03.3]} 50... Kg8 {[%clk 0:00:15.4]} 51. Be5 {[%clk 0:00:03]}
51... Qe3+ {[%clk 0:00:14.9]} 52. Bf3 {[%clk 0:00:03.6]} 52... Qh6+ {[%clk
0:00:13.9]} 53. Kg3 {[%clk 0:00:03.6]} 53... b4 {[%clk 0:00:09]} 54. Qd8+ {[%clk
0:00:03.5]} 54... Kh7 {[%clk 0:00:09.6]} 55. Qh8# {[%clk 0:00:03.5]} 1-0

[Event "Late-Titled-Tuesday-Blitz-February-06-2024"]
[Site "Chess.com"]
[Date "2024.02.06"]
[Round "11"]
[White "ninguno46"]
[Black "gahryman"]
[Result "0-1"]
[WhiteElo "2530"]
[BlackElo "2672"]
[TimeControl "180+1"]
[EndTime "16:05:36 PST"]
[Termination "gahryman won on time"]

1. e4 {[%clk 0:02:41.1]} 1... c5 {[%clk 0:02:59]} 2. Nc3 {[%clk 0:02:40.4]} 2...
Nc6 {[%clk 0:02:58.5]} 3. f4 {[%clk 0:02:40]} 3... g6 {[%clk 0:02:58]} 4. Nf3
{[%clk 0:02:40.4]} 4... Bg7 {[%clk 0:02:58]} 5. Bb5 {[%clk 0:02:40.9]} 5... Nd4
{[%clk 0:02:58.2]} 6. O-O {[%clk 0:02:41]} 6... a6 {[%clk 0:02:56]} 7. Bd3
{[%clk 0:02:40.2]} 7... d6 {[%clk 0:02:47.5]} 8. Nxd4 {[%clk 0:02:38.5]} 8...
cxd4 {[%clk 0:02:44.5]} 9. Ne2 {[%clk 0:02:36.7]} 9... Nh6 {[%clk 0:02:45]} 10.
Ng3 {[%clk 0:02:31.4]} 10... O-O {[%clk 0:02:38.1]} 11. Bc4 {[%clk 0:02:29.9]}
11... Kh8 {[%clk 0:02:19.5]} 12. d3 {[%clk 0:02:29.4]} 12... f5 {[%clk
0:02:19.5]} 13. exf5 {[%clk 0:02:23.6]} 13... Nxf5 {[%clk 0:02:00.9]} 14. Nxf5
{[%clk 0:02:21]} 14... Bxf5 {[%clk 0:02:00.4]} 15. Qf3 {[%clk 0:02:14.4]} 15...
b5 {[%clk 0:02:00]} 16. Bb3 {[%clk 0:02:11.4]} 16... Rc8 {[%clk 0:01:53.5]} 17.
a4 {[%clk 0:02:10.5]} 17... Qd7 {[%clk 0:01:52.5]} 18. axb5 {[%clk 0:02:09.9]}
18... axb5 {[%clk 0:01:53.4]} 19. Bd2 {[%clk 0:02:10.1]} 19... Be6 {[%clk
0:01:52.7]} 20. Rac1 {[%clk 0:01:55.4]} 20... Bxb3 {[%clk 0:01:48.7]} 21. cxb3
{[%clk 0:01:55.1]} 21... Rxc1 {[%clk 0:01:42.8]} 22. Rxc1 {[%clk 0:01:54]} 22...
Qe6 {[%clk 0:01:43]} 23. Qd1 {[%clk 0:01:39.7]} 23... Qf5 {[%clk 0:01:34.2]} 24.
Qe2 {[%clk 0:01:37.6]} 24... e5 {[%clk 0:01:34.2]} 25. Rf1 {[%clk 0:01:27.6]}
25... Qe6 {[%clk 0:01:27]} 26. fxe5 {[%clk 0:01:25.6]} 26... Rxf1+ {[%clk
0:01:23.2]} 27. Kxf1 {[%clk 0:01:17]} 27... dxe5 {[%clk 0:01:22.8]} 28. Qf3
{[%clk 0:01:12]} 28... h5 {[%clk 0:01:20.3]} 29. b4 {[%clk 0:01:06.1]} 29... Kh7
{[%clk 0:01:19.4]} 30. h3 {[%clk 0:01:00.8]} 30... Qb3 {[%clk 0:01:10.5]} 31. g4
{[%clk 0:00:50.7]} 31... Qxb2 {[%clk 0:01:10.2]} 32. Be1 {[%clk 0:00:50.6]}
32... hxg4 {[%clk 0:01:04.7]} 33. hxg4 {[%clk 0:00:50]} 33... Qh2 {[%clk
0:01:04.5]} 34. Bg3 {[%clk 0:00:37.5]} 34... Qd2 {[%clk 0:01:03.9]} 35. Be1
{[%clk 0:00:35.9]} 35... Qh2 {[%clk 0:00:50]} 36. Bg3 {[%clk 0:00:35.1]} 36...
Qh3+ {[%clk 0:00:50]} 37. Ke2 {[%clk 0:00:34.4]} 37... Qh6 {[%clk 0:00:43.1]}
38. Bf2 {[%clk 0:00:26.2]} 38... Qc1 {[%clk 0:00:40.5]} 39. Be1 {[%clk
0:00:25.3]} 39... Qc7 {[%clk 0:00:16]} 40. Qh1+ {[%clk 0:00:24.3]} 40... Kg8
{[%clk 0:00:15.6]} 41. Qd5+ {[%clk 0:00:24.1]} 41... Kh7 {[%clk 0:00:15.4]} 42.
Qh1+ {[%clk 0:00:23.5]} 42... Kg8 {[%clk 0:00:11.8]} 43. Qd5+ {[%clk 0:00:23.1]}
43... Qf7 {[%clk 0:00:12.5]} 44. Qxf7+ {[%clk 0:00:10.8]} 44... Kxf7 {[%clk
0:00:12.5]} 45. Kf3 {[%clk 0:00:11.1]} 45... Ke6 {[%clk 0:00:11.7]} 46. Ke4
{[%clk 0:00:11.2]} 46... Bf8 {[%clk 0:00:11.9]} 47. Bd2 {[%clk 0:00:10.5]} 47...
Be7 {[%clk 0:00:12.2]} 48. Be1 {[%clk 0:00:10.2]} 48... Bg5 {[%clk 0:00:11.9]}
49. Kf3 {[%clk 0:00:08.4]} 49... Kd5 {[%clk 0:00:11.5]} 50. Ke2 {[%clk 0:00:05]}
50... e4 {[%clk 0:00:11.6]} 51. Bg3 {[%clk 0:00:04]} 51... e3 {[%clk 0:00:11.5]}
52. Bc7 {[%clk 0:00:02.7]} 52... Be7 {[%clk 0:00:11.6]} 53. Ba5 {[%clk
0:00:02.2]} 53... Bd6 {[%clk 0:00:12.2]} 54. Kf3 {[%clk 0:00:02.2]} 54... Ke5
{[%clk 0:00:12.5]} 0-1